[Event "101st Irish Championship 2022"]
[Site "Dublin"]
[Date "2022.07.07"]
[Round "6.5"]
[White "Li, Henry"]
[Black "Pang, Khai Jie Ryan"]
[Result "1-0"]
[ECO "C78"]
[WhiteElo "2319"]
[BlackElo "1841"]
[Annotator "RC"]
[PlyCount "81"]
[EventDate "2022.07.05"]
[EventType "swiss"]
[EventCountry "IRL"]
[SourceTitle "playchess.com"]
[Source "ChessBase"]
[SourceQuality "1"]
[TimeControl "40/6300+30:1800+30"]

1. e4 {[%emt 0:00:03]} e5 {[%emt 0:00:56]} 2. Nf3 {[%emt 0:00:14]} Nc6 {[%emt 0:00:34]} 3. Bb5 {[%emt 0:00:23]} a6 {[%emt 0:00:08]} 4. Ba4 {[%emt 0:00:09]} Nf6 {[%emt 0:00:26]} 5. O-O {[%emt 0:01:01]} b5 {[%emt 0:00:31]} 6. Bb3 {[%emt 0:00:06]} Bc5 {[%emt 0:00:15]} 7. a4 {[%emt 0:06:45]} Rb8 {[%emt 0:01:16]} 8. c3 {[%emt 0:01:23]} d6 {[%emt 0:00:39]} 9. d4 {[%emt 0:00:45]} Bb6 {[%emt 0:00:07]} 10. a5 {[%emt 0:01:11]} Ba7 {[%emt 0:00:14]} 11. Be3 {[%emt 0:02:26]} Ra8 {[%emt 0:22:14]} 12. h3 {[%emt 0:20:31]} O-O {[%emt 0:01:26]} 13. Nbd2 {[%emt 0:11:04]} h6 {[%emt 0:01:09]} 14. Qc2 {[%emt 0:11:48]} Re8 {[%emt 0:02:32]} 15. dxe5 {[%emt 0:15:40]} Nxe5 {[%emt 0:02:56]} 16. Nxe5 {[%emt 0:01:13]} dxe5 {[%emt 0:01:58]} 17. Rfe1 {[%emt 0:02:25]} Bxe3 {[%emt 0:01:52]} 18. Rxe3 {[%emt 0:00:17]} c5 {[%emt 0:00:26]} 19. c4 {[%emt 0:03:54]} b4 {[%emt 0:01:54]} 20. Ba4 {[%emt 0:01:34]} Re6 {[%emt 0:02:03]} 21. Nb3 {[%emt 0:00:21]} Qc7 {[%emt 0:06:20]} 22. Rd1 {[%emt 0:01:02]} Bb7 {[%emt 0:05:00]} 23. f3 {[%emt 0:01:38]} Qe7 {[%emt 0:13:48]} 24. Red3 {[%emt 0:05:44]} Bc6 {[%emt 0:00:35]} 25. Bxc6 {[%emt 0:00:24]} Rxc6 {[%emt 0:00:07]} 26. Qd2 {[%emt 0:03:59]} Rcc8 {[%emt 0:03:03]} 27. Rd6 {[%emt 0:01:49]} Nh5 {[%emt 0:00:43]} 28. Rd7 {[%emt 0:06:43]} Qf6 {[%emt 0:03:47]} 29. Rd6 {[%emt 0:03:02]} Qe7 {[%emt 0:00:31]} 30. Qf2 {[%emt 0:03:19]} Nf4 {[%emt 0:00:38]} 31. Kh2 {[%emt 0:00:56]} Ne6 {[%emt 0:04:06]} 32. R1d5 {[%emt 0:01:30]} Nd4 {[%emt 0:09:08]} 33. Nxd4 {[%emt 0:00:09]} cxd4 {[%emt 0:00:28]} 34. f4 {[%emt 0:02:50]} Rxc4 {[%emt 0:02:08]} 35. Rd7 {[%emt 0:00:59]} Qe8 {[%emt 0:00:25]} 36. fxe5 {[%emt 0:00:41]} Rac8 {[%emt 0:00:48]} 37. Qf5 {[%emt 0:01:55]} Rc2 {[%emt 0:10:23]} 38. Rxd4 {[%emt 0:01:03]} b3 {[%emt 0:00:08]} 39. Rd3 {[%emt 0:01:27]} Rxb2 {[%emt 0:01:15]} 40. e6 {[%emt 0:01:09]} fxe6 {[%emt 0:07:14]} 41. Rxg7+ {[%emt 0:30:19]} 1-0

[Event "101st Irish Championship 2022"]
[Site "Dublin"]
[Date "2022.07.07"]
[Round "6.6"]
[White "Venkatesan, Kavin"]
[Black "Kennedy, John"]
[Result "1/2-1/2"]
[ECO "D34"]
[WhiteElo "2076"]
[BlackElo "2047"]
[Annotator "RC"]
[PlyCount "230"]
[EventDate "2022.07.05"]
[EventType "swiss"]
[EventCountry "IRL"]
[SourceTitle "playchess.com"]
[Source "ChessBase"]
[SourceQuality "1"]
[TimeControl "40/6300+30:1800+30"]

1. d4 {[%emt 0:02:34]} d5 {[%emt 0:00:04]} 2. c4 {[%emt 0:00:06]} e6 {[%emt 0:00:04]} 3. Nc3 {[%emt 0:00:09]} c5 {[%emt 0:00:04]} 4. cxd5 {[%emt 0:00:07]} exd5 {[%emt 0:00:05]} 5. Nf3 {[%emt 0:00:07]} Nc6 {[%emt 0:00:06]} 6. g3 {[%emt 0:00:05]} Nf6 {[%emt 0:00:06]} 7. Bg2 {[%emt 0:00:05]} Be7 {[%emt 0:00:04]} 8. O-O {[%emt 0:00:09]} O-O {[%emt 0:00:04]} 9. dxc5 {[%emt 0:00:08]} Bxc5 {[%emt 0:00:08]} 10. a3 {[%emt 0:01:14]} Be6 {[%emt 0:03:05]} 11. b4 {[%emt 0:02:36]} Be7 {[%emt 0:00:04]} 12. Bb2 {[%emt 0:03:02]} Rc8 {[%emt 0:02:24]} 13. Rc1 {[%emt 0:04:06]} Re8 {[%emt 0:01:21]} 14. e3 {[%emt 0:04:15]} h6 {[%emt 0:03:20]} 15. Qa4 {[%emt 0:22:12]} a6 {[%emt 0:06:27]} 16. Rfd1 {[%emt 0:11:40]} Qb6 {[%emt 0:06:38]} 17. Ne2 {[%emt 0:08:12]} Bd7 {[%emt 0:22:51]} 18. Bxf6 {[%emt 0:12:50]} Bxf6 {[%emt 0:02:27]} 19. Qb3 {[%emt 0:03:52]} Be6 {[%emt 0:14:34]} 20. Ned4 {[%emt 0:13:38]} Bg4 {[%emt 0:20:50]} 21. Qxd5 {[%emt 0:07:33]} Nxd4 {[%emt 0:00:21]} 22. exd4 {[%emt 0:01:22]} Rxc1 {[%emt 0:00:08]} 23. Rxc1 {[%emt 0:00:04]} Bxf3 {[%emt 0:00:26]} 24. Bxf3 {[%emt 0:01:10]} Bxd4 {[%emt 0:00:24]} 25. Qxb7 {[%emt 0:02:14]} Bxf2+ {[%emt 0:00:11]} 26. Kg2 {[%emt 0:00:06]} Qxb7 {[%emt 0:19:07]} 27. Bxb7 {[%emt 0:00:05]} Bd4 {[%emt 0:00:33]} 28. Bxa6 {[%emt 0:03:01]} Bb2 {[%emt 0:00:05]} 29. Rb1 {[%emt 0:03:33]} Bxa3 {[%emt 0:00:41]} 30. b5 {[%emt 0:00:07]} Bc5 {[%emt 0:02:48]} 31. b6 {[%emt 0:10:38]} Rb8 {[%emt 0:03:35]} 32. b7 {[%emt 0:00:00]} Kf8 {[%emt 0:00:39]} 33. Rc1 {[%emt 0:00:00]} Bd6 {[%emt 0:00:05]} 34. Kf3 {[%emt 0:00:00]} Ke7 {[%emt 0:00:14]} 35. Ke4 {[%emt 0:00:00]} Kd7 {[%emt 0:04:02]} 36. Kd5 {[%emt 0:00:00]} Rd8 {[%emt 0:03:08]} 37. Rc8 {[%emt 0:01:01]} Bb8 {[%emt 0:00:29]} 38. Bb5+ {[%emt 0:01:00]} Ke7+ {[%emt 0:00:06]} 39. Ke4 {[%emt 0:01:14]} g6 {[%emt 0:01:22]} 40. Bc4 {[%emt 0:00:38]} f5+ {[%emt 0:00:40]} 41. Kf3 {[%emt 0:01:46]} g5 {[%emt 0:00:37]} 42. Ke2 {[%emt 0:03:10]} f4 {[%emt 0:00:40]} 43. g4 {[%emt 0:04:36]} Kd7 {[%emt 0:05:06]} 44. Kf3 {[%emt 0:03:26]} Ke7 {[%emt 0:02:17]} 45. h3 {[%emt 0:02:11]} Ba7 {[%emt 0:01:14]} 46. Be2 {[%emt 0:06:20]} Kd7 {[%emt 0:01:41]} 47. Bd3 {[%emt 0:01:06]} Ke7 {[%emt 0:00:37]} 48. Be4 {[%emt 0:00:59]} Kd7 {[%emt 0:02:03]} 49. Bf5+ {[%emt 0:01:48]} Ke7 {[%emt 0:00:10]} 50. Ke2 {[%emt 0:04:48]} Bb8 {[%emt 0:01:09]} 51. Kf2 {[%emt 0:00:41]} Ba7+ {[%emt 0:00:25]} 52. Kf3 {[%emt 0:00:04]} Bb8 {[%emt 0:00:15]} 53. Ke2 {[%emt 0:00:05]} Ba7 {[%emt 0:00:05]} 54. Ra8 {[%emt 0:01:07]} Bb8 {[%emt 0:00:42]} 55. Bc8 {[%emt 0:00:20]} Bd6 {[%emt 0:02:11]} 56. b8=Q {[%emt 0:00:25]} Bxb8 {[%emt 0:00:05]} 57. Rxb8 {[%emt 0:00:06]} Kd6 {[%emt 0:03:36]} 58. Ra8 {[%emt 0:02:18]} f3+ {[%emt 0:07:39]} 59. Kxf3 {[%emt 0:00:24]} Kc7 {[%emt 0:00:04]} 60. Ra6 {[%emt 0:02:09]} Rd3+ {[%emt 0:01:53]} 61. Kg2 {[%emt 0:00:13]} Kxc8 {[%emt 0:00:45]} 62. Rxh6 {[%emt 0:00:08]} Kd7 {[%emt 0:00:44]} 63. Rh5 {[%emt 0:01:08]} Rd5 {[%emt 0:00:54]} 64. h4 {[%emt 0:00:57]} Rd2+ {[%emt 0:00:19]} 65. Kf3 {[%emt 0:00:15]} gxh4 {[%emt 0:00:05]} 66. Rxh4 {[%emt 0:00:12]} Ke6 {[%emt 0:00:19]} 67. Kf4 {[%emt 0:00:46]} Kf6 {[%emt 0:00:24]} 68. Rh6+ {[%emt 0:00:19]} Kg7 {[%emt 0:00:11]} 69. Ra6 {[%emt 0:00:22]} Rd4+ {[%emt 0:01:01]} 70. Kg5 {[%emt 0:00:24]} Rd5+ {[%emt 0:00:22]} 71. Kh4 {[%emt 0:00:35]} Rc5 {[%emt 0:00:43]} 72. Kg3 {[%emt 0:01:27]} Rc3+ {[%emt 0:00:21]} 73. Kf4 {[%emt 0:00:24]} Rc4+ {[%emt 0:00:07]} 74. Kg5 {[%emt 0:00:26]} Rc5+ {[%emt 0:00:05]} 75. Kh4 {[%emt 0:00:05]} Rd5 {[%emt 0:00:18]} 76. Rb6 {[%emt 0:00:51]} Rc5 {[%emt 0:01:03]} 77. Kg3 {[%emt 0:00:04]} Rc3+ {[%emt 0:00:11]} 78. Kf4 {[%emt 0:00:01]} Rc4+ {[%emt 0:00:07]} 79. Kg5 {[%emt 0:00:02]} Rc5+ {[%emt 0:00:08]} 80. Kh4 {[%emt 0:00:11]} Rd5 {[%emt 0:00:08]} 81. Rc6 {[%emt 0:00:03]} Rb5 {[%emt 0:01:22]} 82. Rc4 {[%emt 0:00:49]} Kg6 {[%emt 0:01:26]} 83. Rc7 {[%emt 0:00:33]} Rd5 {[%emt 0:01:24]} 84. Rc8 {[%emt 0:00:14]} Rd1 {[%emt 0:02:01]} 85. Rc6+ {[%emt 0:00:52]} Kg7 {[%emt 0:00:07]} 86. Kh5 {[%emt 0:00:12]} Rd5+ {[%emt 0:00:59]} 87. g5 {[%emt 0:00:34]} Rd7 {[%emt 0:00:33]} 88. Rb6 {[%emt 0:00:13]} Ra7 {[%emt 0:00:14]} 89. Rc6 {[%emt 0:00:07]} Rb7 {[%emt 0:00:07]} 90. Rc5 {[%emt 0:00:32]} Ra7 {[%emt 0:00:17]} 91. Re5 {[%emt 0:00:38]} Rb7 {[%emt 0:00:24]} 92. Ra5 {[%emt 0:00:01]} Rc7 {[%emt 0:00:23]} 93. Rb5 {[%emt 0:00:01]} Ra7 {[%emt 0:00:06]} 94. Re5 {[%emt 0:02:59]} Rb7 {[%emt 0:00:13]} 95. Ra5 {[%emt 0:00:36]} Rc7 {[%emt 0:00:10]} 96. Ra6 {[%emt 0:01:05]} Rb7 {[%emt 0:00:29]} 97. Ra1 {[%emt 0:00:06]} Rc7 {[%emt 0:00:20]} 98. Rb1 {[%emt 0:00:16]} Ra7 {[%emt 0:00:05]} 99. Re1 {[%emt 0:00:59]} Rb7 {[%emt 0:00:05]} 100. Re5 {[%emt 0:00:38]} Ra7 {[%emt 0:00:11]} 101. Rc5 {[%emt 0:00:51]} Rb7 {[%emt 0:00:07]} 102. Re5 {[%emt 0:00:05]} Ra7 {[%emt 0:00:05]} 103. g6 {[%emt 0:00:47]} Rb7 {[%emt 0:00:22]} 104. Kg5 {[%emt 0:00:11]} Ra7 {[%emt 0:00:22]} 105. Rd5 {[%emt 0:00:07]} Rb7 {[%emt 0:00:10]} 106. Rc5 {[%emt 0:00:01]} Ra7 {[%emt 0:00:07]} 107. Rb5 {[%emt 0:00:01]} Rc7 {[%emt 0:00:09]} 108. Ra5 {[%emt 0:00:01]} Rb7 {[%emt 0:00:08]} 109. Kf5 {[%emt 0:00:28]} Rc7 {[%emt 0:00:18]} 110. Re5 {[%emt 0:00:16]} Ra7 {[%emt 0:00:08]} 111. Rd5 {[%emt 0:00:05]} Rb7 {[%emt 0:00:10]} 112. Kg5 {[%emt 0:00:35]} Ra7 {[%emt 0:00:06]} 113. Rf5 {[%emt 0:00:06]} Rb7 {[%emt 0:00:10]} 114. Rf7+ {[%emt 0:00:35]} Rxf7 {[%emt 0:00:08]} 115. gxf7 {[%emt 0:00:02]} Kxf7 {[%emt 0:00:12]} 1/2-1/2

[Event "101st Irish Championship 2022"]
[Site "Dublin"]
[Date "2022.07.07"]
[Round "6.7"]
[White "Keenan, Cathal"]
[Black "O'Connell, Gerard"]
[Result "1/2-1/2"]
[ECO "B51"]
[WhiteElo "1811"]
[BlackElo "2052"]
[Annotator "RC"]
[PlyCount "110"]
[EventDate "2022.07.05"]
[EventType "swiss"]
[EventCountry "IRL"]
[SourceTitle "playchess.com"]
[Source "ChessBase"]
[SourceQuality "1"]
[TimeControl "40/6300+30:1800+30"]

1. e4 {[%emt 0:03:03]} c5 {[%emt 0:00:11]} 2. Nf3 {[%emt 0:00:11]} d6 {[%emt 0:00:06]} 3. Bb5+ {[%emt 0:00:09]} Nd7 {[%emt 0:00:58]} 4. c3 {[%emt 0:01:36]} a6 {[%emt 0:00:07]} 5. Ba4 {[%emt 0:00:14]} b5 {[%emt 0:00:26]} 6. Bc2 {[%emt 0:00:09]} e5 {[%emt 0:00:54]} 7. O-O {[%emt 0:01:03]} Bb7 {[%emt 0:02:17]} 8. d4 {[%emt 0:01:51]} Be7 {[%emt 0:06:07]} 9. Re1 {[%emt 0:04:01]} Ngf6 {[%emt 0:03:30]} 10. Nbd2 {[%emt 0:00:54]} O-O {[%emt 0:00:15]} 11. Nf1 {[%emt 0:02:01]} Re8 {[%emt 0:06:29]} 12. Ng3 {[%emt 0:11:04]} g6 {[%emt 0:01:29]} 13. Bg5 {[%emt 0:09:56]} Qc7 {[%emt 0:08:53]} 14. d5 {[%emt 0:02:57]} c4 {[%emt 0:05:18]} 15. Qd2 {[%emt 0:03:51]} Nc5 {[%emt 0:01:59]} 16. Nh4 {[%emt 0:05:11]} Bc8 {[%emt 0:09:58]} 17. Rf1 {[%emt 0:14:23]} Ra7 {[%emt 0:07:14]} 18. f4 {[%emt 0:02:11]} Ng4 {[%emt 0:03:14]} 19. f5 {[%emt 0:12:27]} Qd8 {[%emt 0:02:21]} 20. Nf3 {[%emt 0:17:23]} Bxg5 {[%emt 0:06:28]} 21. Nxg5 {[%emt 0:00:08]} h6 {[%emt 0:20:07]} 22. Nf3 {[%emt 0:04:38]} Kg7 {[%emt 0:07:29]} 23. h3 {[%emt 0:03:53]} Nf6 {[%emt 0:00:10]} 24. Nh2 {[%emt 0:00:37]} Rg8 {[%emt 0:08:17]} 25. Rf3 {[%emt 0:01:22]} g5 {[%emt 0:00:39]} 26. Ng4 {[%emt 0:00:23]} Nxg4 {[%emt 0:00:28]} 27. hxg4 {[%emt 0:00:41]} f6 {[%emt 0:00:11]} 28. b4 {[%emt 0:01:31]} cxb3 {[%emt 0:01:57]} 29. axb3 {[%emt 0:00:07]} Qb6 {[%emt 0:00:15]} 30. Kh2 {[%emt 0:02:20]} Bd7 {[%emt 0:03:13]} 31. Ne2 {[%emt 0:05:20]} a5 {[%emt 0:01:49]} 32. Nc1 {[%emt 0:01:17]} Rga8 {[%emt 0:01:06]} 33. Rf1 {[%emt 0:01:50]} b4 {[%emt 0:00:38]} 34. cxb4 {[%emt 0:00:29]} axb4 {[%emt 0:00:14]} 35. Rxa7 {[%emt 0:00:10]} Rxa7 {[%emt 0:00:03]} 36. Re1 {[%emt 0:01:12]} Ra1 {[%emt 0:02:03]} 37. Nd3 {[%emt 0:00:13]} Rxe1 {[%emt 0:01:51]} 38. Qxe1 {[%emt 0:00:40]} Nxd3 {[%emt 0:00:12]} 39. Bxd3 {[%emt 0:00:03]} Qd4 {[%emt 0:00:17]} 40. Bc4 {[%emt 0:00:35]} Qc3 {[%emt 0:00:22]} 41. Qf2 {[%emt 0:30:44]} Qd4 {[%emt 0:32:47]} 42. Qxd4 {[%emt 0:00:45]} exd4 {[%emt 0:00:04]} 43. Kg1 {[%emt 0:00:10]} Kf8 {[%emt 0:01:08]} 44. Kf2 {[%emt 0:00:35]} Ke7 {[%emt 0:00:05]} 45. Ke2 {[%emt 0:00:37]} Kd8 {[%emt 0:00:11]} 46. Kd3 {[%emt 0:00:48]} Kc7 {[%emt 0:00:44]} 47. Kxd4 {[%emt 0:00:31]} Kb6 {[%emt 0:00:03]} 48. Bd3 {[%emt 0:00:33]} Be8 {[%emt 0:00:11]} 49. Be2 {[%emt 0:01:04]} Bd7 {[%emt 0:00:34]} 50. Bf3 {[%emt 0:00:10]} Bb5 {[%emt 0:00:24]} 51. Bd1 {[%emt 0:00:57]} Ba6 {[%emt 0:01:42]} 52. Bf3 {[%emt 0:00:56]} Bf1 {[%emt 0:00:11]} 53. g3 {[%emt 0:00:22]} Bb5 {[%emt 0:03:50]} 54. Bd1 {[%emt 0:00:18]} Ba6 {[%emt 0:00:08]} 55. Bf3 {[%emt 0:00:18]} Bb5 {[%emt 0:01:23]} 1/2-1/2

[Event "101st Irish Championship 2022"]
[Site "Dublin"]
[Date "2022.07.07"]
[Round "6.8"]
[White "Goss, Alex"]
[Black "Cafolla, Peter"]
[Result "1/2-1/2"]
[ECO "A53"]
[WhiteElo "1859"]
[BlackElo "1937"]
[Annotator "TA"]
[PlyCount "85"]
[EventDate "2022.07.05"]
[EventType "swiss"]
[EventCountry "IRL"]
[SourceTitle "playchess.com"]
[Source "ChessBase"]
[SourceQuality "1"]
[TimeControl "40/6300+30:1800+30"]

{[%evp 9,85,60,62,35,39,38,37,32,44,43,45,44,47,43,53,46,68,35,33,41,40,31,33,24,54,45,117,66,116,121,108,103,107,113,110,79,77,37,48,45,83,0,11,0,0,1,91,95,80,66,92,109,87,72,200,6,202,189,181,162,172,170,212,183,162,146,127,61,72,0,0,0,20,-18,-27,-18,0,0]} 1. d4 {[%emt 0:00:04]} Nf6 {[%emt 0:00:11]} 2. Nf3 {[%emt 0:00:14]} d6 {[%emt 0:01:03]} 3. c4 {[%emt 0:03:20]} c5 {[%emt 0:01:52]} 4. dxc5 {[%emt 0:03:37]} Qa5+ {[%emt 0:00:22]} 5. Nc3 {[%emt 0:01:16]} Qxc5 {[%emt 0:04:30]} 6. e3 {[%emt 0:08:36] A53: Old Indian Defence without Nf3.} g6 {[%emt 0:03:25]} 7. Be2 {[%emt 0:00:34]} Bg7 {[%emt 0:04:00]} 8. O-O {[%emt 0:00:15] White is slightly better.} O-O {[%emt 0:00:05]} 9. e4 {[%emt 0:03:38]} Nc6 {[%emt 0:02:14]} 10. Be3 {[%emt 0:01:27]} Qa5 {[%emt 0:00:17]} 11. h3 {[%emt 0:01:16] Against Ng4} Nd7 {[%emt 0:05:36]} 12. Nd4 $1 {[%emt 0:04:41]} a6 {[%emt 0:11:37] [#]} 13. Nd5 $146 {[%emt 0:03:57] Strongly threatening Nxc6.} ({Predecessor:} 13. Qd2 Qd8 14. Rab1 Nc5 15. a3 Ne6 16. Nxc6 bxc6 17. b4 {1-0 (52) Evans,H (115)-Gordon,P (109) Torquay 2018}) 13... Qd8 {[%emt 0:04:34]} 14. Rc1 {[%emt 0:03:59]} Nc5 {[%emt 0:03:27]} 15. f3 {[%emt 0:03:43]} e6 {[%emt 0:08:11] aiming for ...Nxd4.} 16. Nc3 {[%emt 0:02:57]} Qe7 {[%emt 0:05:45]} 17. Qd2 {[%emt 0:03:40]} Bd7 {[%emt 0:04:16]} (17... Bxd4 $14 18. Bxd4 Nxd4 19. Qxd4 e5) 18. Rfd1 {[%emt 0:00:47]} (18. Nc2 $16) 18... Rad8 {[%emt 0:01:48] [#]} ({Better is} 18... Nb4 $14) 19. Nc2 $1 $16 {[%emt 0:06:04]} Bc8 {[%emt 0:04:28]} 20. b4 {[%emt 0:01:18]} Nd7 {[%emt 0:00:21]} 21. b5 {[%emt 0:02:47]} Ncb8 {[%emt 0:01:42]} 22. Na4 {[%emt 0:05:18]} Nc5 {[%emt 0:02:39]} 23. Nxc5 {[%emt 0:02:12]} dxc5 {[%emt 0:00:10]} 24. Qa5 {[%emt 0:00:35]} Nd7 {[%emt 0:03:20]} 25. b6 {[%emt 0:04:48]} (25. bxa6 $16 {Hoping for a7.} bxa6 26. Rd2) 25... f5 $11 {[%emt 0:05:44]} 26. Ne1 {[%emt 0:02:40]} fxe4 {[%emt 0:02:36]} 27. fxe4 {[%emt 0:00:35]} Bd4 {[%emt 0:05:30]} (27... Qh4 $11) 28. Bxd4 $16 {[%emt 0:05:53]} cxd4 {[%emt 0:00:08]} 29. Rxd4 {[%emt 0:01:38]} e5 {[%emt 0:05:33]} 30. Rd5 {[%emt 0:07:47]} (30. Qd5+ $2 Kh8 31. Rd3 Nc5 $19) 30... Qg5 {[%emt 0:00:27]} 31. Rc3 {[%emt 0:01:53] And now Rcd3 would win. Active counter play!} Nf6 {[%emt 0:01:44]} (31... Qh4 $16 32. Rf3 Qxe4) 32. Nf3 $2 {[%emt 0:04:23]} ({And not} 32. Rxe5 Qd2 33. Rc2 Qe3+ 34. Kh2 (34. Kh1 Nxe4 35. Bf3 Rxf3 $17) 34... Nxe4 $11) (32. Rxd8 $18 Rxd8 33. Nf3) 32... Qg3 $2 {[%emt 0:02:39]} (32... Rxd5 $1 $11 33. cxd5 (33. Nxg5 $2 {perishes.} Rxa5 34. Bd3 Rc5 $19) 33... Qg3) 33. Rxd8 $18 {[%emt 0:00:46]} Rxd8 {[%emt 0:00:12]} 34. Qxe5 {[%emt 0:00:15]} Qxe5 {[%emt 0:00:34]} 35. Nxe5 {[%emt 0:00:06] c5 is the strong threat.} Nxe4 {[%emt 0:00:06]} 36. Re3 {[%emt 0:00:41]} Nc5 {[%emt 0:00:53]} 37. Nd3 {[%emt 0:01:16]} Na4 {[%emt 0:00:35]} 38. Nf4 {[%emt 0:14:20]} (38. c5 $16) 38... Nxb6 {[%emt 0:01:23] [#]} 39. Nd5 {[%emt 0:00:21]} (39. Re7 $1 $16) 39... Nxd5 $11 {[%emt 0:02:01]} 40. cxd5 {[%emt 0:00:08]} Kf8 {[%emt 0:01:36] Prevents Re7.} 41. Bc4 {[%emt 0:30:31]} b5 {[%emt 0:30:06]} 42. Bb3 {[%emt 0:00:09]} Bb7 {[%emt 0:00:49]} 43. Re6 {[%emt 0:04:45] Weighted Error Value: White=0.28 (precise) /Black=0.23 (precise)} 1/2-1/2

[Event "101st Irish Championship 2022"]
[Site "Dublin"]
[Date "2022.07.07"]
[Round "6.9"]
[White "Mats, Diana"]
[Black "O`Gorman, Alice"]
[Result "1-0"]
[ECO "B50"]
[WhiteElo "2028"]
[BlackElo "2043"]
[Annotator "NA RC"]
[PlyCount "55"]
[EventDate "2022.07.05"]
[EventType "swiss"]
[EventCountry "IRL"]
[SourceTitle "playchess.com"]
[Source "ChessBase"]
[SourceQuality "1"]
[TimeControl "40/6300+30:1800+30"]

1. e4 {[%emt 0:00:03]} c5 {[%emt 0:00:04]} 2. Nf3 {[%emt 0:00:16]} d6 {[%emt 0:00:03]} 3. c3 {[%emt 0:01:30]} Nf6 {[%emt 0:00:12]} 4. h3 {[%emt 0:00:31]} Nc6 {[%emt 0:00:46]} 5. Bd3 {[%emt 0:03:13]} e5 {[%emt 0:00:13]} 6. Bc2 {[%emt 0:00:32]} g6 {[%emt 0:00:06]} 7. d4 {[%emt 0:01:08]} cxd4 {[%emt 0:01:20]} 8. cxd4 {[%emt 0:00:05]} exd4 {[%emt 0:00:38]} 9. Nxd4 {[%emt 0:00:15]} Bg7 {[%emt 0:04:59]} 10. Be3 {[%emt 0:01:26]} O-O {[%emt 0:00:56]} 11. Nc3 {[%emt 0:00:58]} d5 {[%emt 0:02:04]} 12. O-O {[%emt 0:04:02]} Nb4 {[%emt 0:07:39]} 13. e5 {[%emt 0:10:20]} Nxc2 {[%emt 0:12:55]} 14. Qxc2 {[%emt 0:02:18]} Nd7 {[%emt 0:10:25]} 15. f4 {[%emt 0:01:04]} Nb6 {[%emt 0:05:18]} 16. Bf2 {[%emt 0:07:59]} Re8 {[%emt 0:07:47]} 17. Ncb5 {[%emt 0:05:22]} Rf8 {[%emt 0:04:53]} 18. a4 {[%emt 0:06:08]} a6 {[%emt 0:09:06]} 19. Nc7 {[%emt 0:11:55]} Rb8 {[%emt 0:03:00]} 20. Qc5 {[%emt 0:00:30]} Nc4 {[%emt 0:14:26]} 21. Nxd5 {[%emt 0:03:34]} Nd2 {[%emt 0:02:13]} 22. Rfe1 {[%emt 0:02:52]} Kh8 {[%emt 0:11:29]} 23. Nb6 {[%emt 0:04:53]} Bh6 {[%emt 0:08:55]} 24. Rad1 {[%emt 0:19:25]} Bxf4 {[%emt 0:00:53]} 25. Nb3 {[%emt 0:01:46]} Bxh3 {[%emt 0:03:21]} 26. Qc3 {[%emt 0:07:53]} Bxg2 {[%emt 0:03:08]} 27. e6+ {[%emt 0:00:59]} Kg8 {[%emt 0:00:19]} 28. e7 {[%emt 0:00:16]} 1-0

[Event "101st Irish Championship 2022"]
[Site "Dublin"]
[Date "2022.07.07"]
[Round "6.10"]
[White "Liu, Jason"]
[Black "Doyle, Anthony"]
[Result "1-0"]
[ECO "C29"]
[WhiteElo "1746"]
[BlackElo "2116"]
[Annotator "NA"]
[PlyCount "73"]
[EventDate "2022.07.05"]
[EventType "swiss"]
[EventCountry "IRL"]
[SourceTitle "playchess.com"]
[Source "ChessBase"]
[SourceQuality "1"]
[TimeControl "40/6300+30:1800+30"]

1. e4 {[%emt 0:00:03]} e5 {[%emt 0:00:07]} 2. Nc3 {[%emt 0:00:10]} Nf6 {[%emt 0:00:09]} 3. f4 {[%emt 0:00:08]} d5 {[%emt 0:00:37]} 4. fxe5 {[%emt 0:00:12]} Nxe4 {[%emt 0:00:23]} 5. Qf3 {[%emt 0:00:19]} Nxc3 {[%emt 0:13:25]} 6. bxc3 {[%emt 0:00:54]} Be7 {[%emt 0:00:31]} 7. d4 {[%emt 0:05:02]} Be6 {[%emt 0:14:35]} 8. Bd3 {[%emt 0:06:39]} c5 {[%emt 0:04:23]} 9. Ne2 {[%emt 0:08:25]} c4 {[%emt 0:07:58]} 10. Bf5 {[%emt 0:03:47]} Bxf5 {[%emt 0:08:51]} 11. Qxf5 {[%emt 0:00:31]} Qd7 {[%emt 0:00:20]} 12. Qxd7+ {[%emt 0:08:04]} Kxd7 {[%emt 0:08:34]} 13. O-O {[%emt 0:05:46]} Rf8 {[%emt 0:03:24]} 14. Nf4 {[%emt 0:04:30]} Kc6 {[%emt 0:02:20]} 15. Nh5 {[%emt 0:04:04]} f6 {[%emt 0:04:55]} 16. exf6 {[%emt 0:19:57]} gxf6 {[%emt 0:00:40]} 17. Re1 {[%emt 0:02:11]} Rf7 {[%emt 0:01:53]} 18. Bf4 {[%emt 0:07:44]} Na6 {[%emt 0:00:24]} 19. Re6+ {[%emt 0:03:12]} Kd7 {[%emt 0:00:09]} 20. Rae1 {[%emt 0:00:52]} Rc8 {[%emt 0:02:16]} 21. Nxf6+ {[%emt 0:05:29]} Rxf6 {[%emt 0:00:11]} 22. Rxe7+ {[%emt 0:00:18]} Kc6 {[%emt 0:02:29]} 23. R7e6+ {[%emt 0:00:52]} Rxe6 {[%emt 0:00:06]} 24. Rxe6+ {[%emt 0:00:02]} Kb5 {[%emt 0:01:05]} 25. Re7 {[%emt 0:01:53]} Ka4 {[%emt 0:00:45]} 26. Rxb7 {[%emt 0:02:13]} Ka3 {[%emt 0:00:21]} 27. Rb5 {[%emt 0:01:37]} Rc6 {[%emt 0:04:57]} 28. Kf2 {[%emt 0:02:18]} Re6 {[%emt 0:04:13]} 29. Be5 {[%emt 0:01:52]} Kxa2 {[%emt 0:06:41]} 30. Ke2 {[%emt 0:02:28]} Nc7 {[%emt 0:00:13]} 31. Ra5+ {[%emt 0:00:14]} Kb2 {[%emt 0:01:26]} 32. Kd2 {[%emt 0:00:22]} Ne8 {[%emt 0:03:38]} 33. Rb5+ {[%emt 0:00:59]} Ka2 {[%emt 0:00:08]} 34. Ra5+ {[%emt 0:01:21]} Kb2 {[%emt 0:00:11]} 35. Rxa7 {[%emt 0:00:12]} Nf6 {[%emt 0:00:29]} 36. Rb7+ {[%emt 0:00:19]} Ka2 {[%emt 0:00:08]} 37. Kc1 {[%emt 0:00:26]} 1-0